[Event "Rapid della Domenica"]
[Site "Chess.com"]
[Date "2020.06.14"]
[Round "4"]
[White "mr6701"]
[Black "Mrtre7"]
[Result "1-0"]
[WhiteElo "1877"]
[BlackElo "1473"]
[TimeControl "720+3"]
[EndTime "7:38:22 PDT"]
[Termination "mr6701 ha vinto per tempo"]

1. e4 {[%clk 0:12:02.9]} 1... c5 {[%clk 0:11:56.9]} 2. d4 {[%clk 0:12:05]} 2...
cxd4 {[%clk 0:11:57.9]} 3. c3 {[%clk 0:12:07.2]} 3... dxc3 {[%clk 0:11:59.6]} 4.
Nxc3 {[%clk 0:12:09.3]} 4... Nc6 {[%clk 0:12:01.2]} 5. Nf3 {[%clk 0:12:12.2]}
5... d6 {[%clk 0:12:02.9]} 6. Bc4 {[%clk 0:12:14.2]} 6... e6 {[%clk 0:12:04.3]}
7. O-O {[%clk 0:12:15.8]} 7... Nf6 {[%clk 0:12:06.1]} 8. Bg5 {[%clk 0:12:18.3]}
8... Be7 {[%clk 0:11:39.8]} 9. Qe2 {[%clk 0:12:19.9]} 9... O-O {[%clk
0:11:34.3]} 10. Rfd1 {[%clk 0:12:21.8]} 10... e5 {[%clk 0:11:35.7]} 11. Nb5
{[%clk 0:12:18.4]} 11... Bg4 {[%clk 0:11:35.4]} 12. Bxf6 {[%clk 0:12:18.2]}
12... gxf6 {[%clk 0:11:14.3]} 13. h3 {[%clk 0:12:19]} 13... Bxf3 {[%clk
0:11:08.5]} 14. Qxf3 {[%clk 0:12:20.4]} 14... a6 {[%clk 0:10:59.7]} 15. Nc3
{[%clk 0:12:17.8]} 15... Nd4 {[%clk 0:10:49.9]} 16. Qh5 {[%clk 0:12:16.5]} 16...
b5 {[%clk 0:10:21.5]} 17. Bd5 {[%clk 0:12:16.4]} 17... Rc8 {[%clk 0:09:54.2]}
18. Rd3 {[%clk 0:12:17.4]} 18... Ne6 {[%clk 0:08:44.2]} 19. Bb7 {[%clk
0:11:53.2]} 19... Rc4 {[%clk 0:07:08.2]} 20. Bxa6 {[%clk 0:11:15.1]} 20... Qb6
{[%clk 0:06:40.6]} 21. Nd5 {[%clk 0:10:42.8]} 21... Qa7 {[%clk 0:05:59.2]} 22.
Rg3+ {[%clk 0:09:44.1]} 22... Kh8 {[%clk 0:05:40.6]} 23. Qh6 {[%clk 0:09:22.2]}
23... Rg8 {[%clk 0:02:40.7]} 24. Nxf6 {[%clk 0:09:15.5]} 24... Bxf6 {[%clk
0:02:40]} 25. Qxf6+ {[%clk 0:09:17.1]} 25... Ng7 {[%clk 0:02:35.6]} 26. Bxb5
{[%clk 0:09:10.2]} 26... Rxe4 {[%clk 0:02:31.7]} 27. Rf3 {[%clk 0:08:11]} 27...
Rb4 {[%clk 0:02:02.7]} 28. a4 {[%clk 0:08:00.1]} 28... Rxb2 {[%clk 0:01:55.1]}
29. Rc1 {[%clk 0:08:02.4]} 29... Qb8 {[%clk 0:01:23.7]} 30. Rc6 {[%clk
0:07:46.6]} 30... Qd8 {[%clk 0:01:13.9]} 31. Rxd6 {[%clk 0:07:32.4]} 31... Qxf6
{[%clk 0:01:15.1]} 32. Rdxf6 {[%clk 0:07:31]} 32... Ne6 {[%clk 0:01:07.5]} 33.
Rg3 {[%clk 0:07:11.2]} 33... Rxg3 {[%clk 0:01:05.8]} 34. fxg3 {[%clk 0:07:13.2]}
34... Kg7 {[%clk 0:01:07.5]} 35. Rf3 {[%clk 0:07:11.7]} 35... e4 {[%clk
0:01:00.9]} 36. Re3 {[%clk 0:07:09.6]} 36... f5 {[%clk 0:01:02.3]} 37. Ra3
{[%clk 0:06:58.6]} 37... Kf6 {[%clk 0:00:59.9]} 38. Bd7 {[%clk 0:06:59.3]} 38...
Nd4 {[%clk 0:00:55.6]} 39. a5 {[%clk 0:06:56]} 39... e3 {[%clk 0:00:46.9]} 40.
Rxe3 {[%clk 0:06:52.8]} 40... Ra2 {[%clk 0:00:46.8]} 41. Rd3 {[%clk 0:05:55.6]}
41... Ne2+ {[%clk 0:00:41.5]} 42. Kf1 {[%clk 0:05:47.5]} 42... Nc1 {[%clk
0:00:24.2]} 43. Rd5 {[%clk 0:05:43.6]} 43... Ra3 {[%clk 0:00:18.4]} 44. Bxf5
{[%clk 0:05:36.9]} 44... Nb3 {[%clk 0:00:16.8]} 45. Bxh7 {[%clk 0:05:33.5]}
45... Nxa5 {[%clk 0:00:18.4]} 46. g4 {[%clk 0:05:27.2]} 46... Nc4 {[%clk
0:00:19.4]} 47. Rc5 {[%clk 0:04:58]} 47... Nd2+ {[%clk 0:00:18.3]} 48. Kg1
{[%clk 0:04:52.8]} 48... Ra1+ {[%clk 0:00:19.6]} 49. Kh2 {[%clk 0:04:54.3]}
49... Nf1+ {[%clk 0:00:19.7]} 50. Kg1 {[%clk 0:04:54.6]} 50... Ne3+ {[%clk
0:00:15.7]} 51. Kf2 {[%clk 0:04:51.9]} 51... Nd1+ {[%clk 0:00:17.4]} 52. Kg3
{[%clk 0:04:48]} 52... Ra3+ {[%clk 0:00:18.9]} 53. Kh4 {[%clk 0:04:46.8]} 53...
Nf2 {[%clk 0:00:19.6]} 54. g3 {[%clk 0:04:44.8]} 54... Nh1 {[%clk 0:00:19.8]}
55. g5+ {[%clk 0:04:43.4]} 55... Kg7 {[%clk 0:00:21.3]} 56. Bf5 {[%clk
0:04:37.7]} 56... Nxg3 {[%clk 0:00:20.9]} 57. Rc7+ {[%clk 0:04:39.5]} 57... Kf8
{[%clk 0:00:21.7]} 58. Bg4 {[%clk 0:04:39.5]} 58... Ne4 {[%clk 0:00:19.5]} 59.
Kh5 {[%clk 0:04:39]} 59... Ra5 {[%clk 0:00:19.9]} 60. h4 {[%clk 0:04:37.1]}
60... Ng3+ {[%clk 0:00:21.8]} 61. Kh6 {[%clk 0:04:35]} 61... Ra6+ {[%clk
0:00:23.6]} 62. g6 {[%clk 0:04:35]} 62... Rf6 {[%clk 0:00:22.2]} 63. h5 {[%clk
0:04:31.9]} 63... Ne4 {[%clk 0:00:23.1]} 64. Rc4 {[%clk 0:04:27.6]} 64... Nd6
{[%clk 0:00:21.1]} 65. Rc7 {[%clk 0:04:24.7]} 65... Ke8 {[%clk 0:00:14]} 66. Kh7
{[%clk 0:04:21.7]} 66... Rf8 {[%clk 0:00:06.8]} 67. g7 {[%clk 0:04:14.6]} 1-0